fUSD/lending_fUSD_20240125
["ID","MTS","AMOUNT","RATE_DAILY","PERIOD"]
[312739376,1706191235083,-500.0,0.00022999,2]
[312739377,1706191235108,-500.0,0.00022999,2]
[312739378,1706191235134,-500.0,0.00022999,2]
[312739379,1706191235160,-592.92033382,0.00022999,2]
[312739380,1706191235186,-2062.45999367,0.00023,2]
[312739381,1706191235214,-3746661.5210471,0.00023,2]
[312739382,1706191245406,-8891.90757669,0.00022999,2]
[312739383,1706191245433,-500.0,0.00022999,2]
[312739384,1706191245459,-282.21949821,0.00022999,2]
[312739385,1706191245486,-305.56082355,0.00022999,2]
[312739386,1706191245511,-644.50987765,0.00022999,2]
[312739387,1706191245538,-187.08737059,0.00022999,2]
[312739388,1706191245562,-500.0,0.00022999,2]
[312739389,1706191245587,-327.87610014,0.00022999,2]
[312739390,1706191245613,-584.44493985,0.00022999,2]
[312739391,1706191245639,-2987776.39381332,0.00023,2]
[312739397,1706191374183,524.15,0.0002074,2]
[312739399,1706191513595,200.0,0.000302,120]
[312739416,1706191727269,-152.96,0.00021664,2]
[312739417,1706191727297,-1262.37262765,0.00021681,2]
[312739418,1706191727327,-270.45745944,0.00021682,2]
[312739419,1706191727354,-150.0,0.00021682,2]
[312739420,1706191727380,-176.15,0.00021683,2]
[312739421,1706191727407,-6447.51276407,0.00021735,2]
[312739422,1706191727436,-1535.59,0.00021736,2]
[312739423,1706191727461,-33414.03953836,0.00021813,2]
[312739424,1706191727489,-250.0,0.00021819,2]
[312739425,1706191727516,-200.0,0.00021819,2]
[312739426,1706191727542,-160.72,0.00021899,2]
[312739427,1706191727568,-150.0,0.00021913,2]
[312739428,1706191727596,-279.78,0.00021916,2]
[312739429,1706191727625,-12122.8,0.00021937,2]
[312739430,1706191727651,-176.55,0.00021937,2]
[312739431,1706191727681,-405.58,0.00021985,2]
[312739432,1706191727708,-150.0,0.00022,2]
[312739433,1706191727736,-392.75,0.00022,2]
[312739434,1706191727763,-196.69,0.00022019,10]
[312739435,1706191727791,-150.0,0.00022071,2]
[312739436,1706191727816,-1771.8,0.00022071,2]
[312739437,1706191727841,-2000.0,0.00022071,2]
[312739438,1706191727866,-662.28,0.00022071,2]
[312739439,1706191727891,-2774.61992536,0.00022076,2]
[312739440,1706191727915,-420.3224339,0.00022076,2]
[312739441,1706191727942,-160.72,0.00022127,2]
[312739442,1706191727968,-2500.0,0.000222,8]
[312739443,1706191727997,-5000.0,0.000223,8]
[312739444,1706191728025,-160.72,0.00022355,2]
[312739445,1706191728051,-7500.0,0.000224,8]
[312739446,1706191728077,-10000.0,0.000225,8]
[312739447,1706191728103,-160.72,0.00022583,2]
[312739448,1706191728130,-12500.0,0.000226,8]
[312739449,1706191728155,-2500.0,0.000227,8]
[312739450,1706191728182,-279.78,0.00022727,2]
[312739451,1706191728208,-14567.61669577,0.00022766,2]
[312739452,1706191728234,-21087.0,0.0002277,2]
[312739453,1706191728261,-2500.0,0.000228,8]
[312739454,1706191728288,-160.72,0.00022812,2]
[312739455,1706191728317,-155.43378467,0.00022881,2]
[312739456,1706191728348,-449.42676437,0.00022898,2]
[312739457,1706191728376,-166.38318017,0.00022898,2]
[312739458,1706191728405,-4765.09579908,0.00022898,2]
[312739459,1706191728433,-449.42676432,0.00022898,2]
[312739460,1706191728461,-4765.09579907,0.00022899,2]
[312739461,1706191728487,-449.42676432,0.00022899,2]
[312739462,1706191728514,-166.38318017,0.00022899,2]
[312739463,1706191728541,-449.42676432,0.00022899,2]
[312739464,1706191728570,-4765.09579907,0.00022899,2]
[312739465,1706191728598,-449.42676432,0.00022899,2]
[312739466,1706191728622,-166.38318017,0.00022899,2]
[312739467,1706191728647,-449.42676432,0.00022899,2]
[312739468,1706191728674,-4765.09579907,0.000229,2]
[312739469,1706191728700,-449.42676432,0.000229,2]
[312739470,1706191728724,-449.42676432,0.000229,2]
[312739471,1706191728749,-166.38318017,0.000229,2]
[312739472,1706191728779,-152.22697298,0.000229,2]
[312739473,1706191728806,-4765.09579907,0.000229,2]
[312739474,1706191728832,-882.36010886,0.000229,2]
[312739475,1706191728858,-685.09540034,0.000229,2]
[312739476,1706191728883,-1428.18193054,0.000229,6]
[312739477,1706191728910,-2500.0,0.000229,8]
[312739478,1706191728936,-6370.11758877,0.00022995,2]
[312739479,1706191728960,-7106.77367024,0.00022995,5]
[312739480,1706191728985,-1176.00349266,0.00022995,2]
[312739481,1706191729009,-155.80321594,0.00022995,2]
[312739482,1706191729192,-1748.00258789,0.00022996,2]
[312739483,1706191729221,-354.2584703,0.00022996,2]
[312739484,1706191729246,-554.2233141,0.00022996,2]
[312739485,1706191729274,-34152.57092929,0.00022996,2]
[312739486,1706191729298,-372.59817034,0.00022996,2]
[312739487,1706191729324,-155.69386915,0.00022996,2]
[312739488,1706191729349,-3004.21392656,0.00022996,2]
[312739489,1706191729374,-504.19787692,0.00022996,2]
[312739490,1706191729397,-377.5421868,0.00022996,2]
[312739491,1706191729423,-157.46952988,0.00022996,2]
[312739492,1706191729447,-1041.63971272,0.00022996,2]
[312739493,1706191729472,-86302.67948412,0.00022997,2]
[312739494,1706191729498,-506416.32163238,0.00022998,2]
[312739495,1706191729522,-322.16947364,0.00022998,2]
[312739496,1706191729546,-1015.27508866,0.00022999,2]
[312739497,1706191729570,-273.11204593,0.00022999,2]
[312739498,1706191729595,-1067.90212132,0.00022999,2]
[312739499,1706191729619,-210.05748419,0.00022999,2]
[312739500,1706191729643,-1775.0,0.00022999,2]
[312739501,1706191729668,-403.30154985,0.00022999,2]
[312739502,1706191729692,-294.36887801,0.00022999,2]
[312739503,1706191729717,-500.0,0.00022999,2]
[312739504,1706191729742,-500.0,0.00022999,2]
[312739505,1706191729767,-500.0,0.00022999,2]
[312739506,1706191729792,-500.0,0.00022999,2]
[312739507,1706191729817,-159.73423716,0.00022999,2]
[312739508,1706191729842,-587.4682128,0.00022999,2]
[312739509,1706191729867,-252.32303366,0.00022999,2]
[312739510,1706191729891,-1031.22999683,0.00023,2]
[312739511,1706191729918,-162017.9727473,0.00023,2]
[312739512,1706191752809,-192.60373434,0.000229,2]
[312739513,1706191752832,-270.45745944,0.00022999,2]
[312739514,1706191752856,-1536.93880622,0.00022999,2]
[312739515,1706191753320,-2000.0,0.00022999,2]
[312739516,1706191753841,-2000.0,0.00022999,2]
[312739517,1706191754332,-2000.0,0.00022999,2]
[312739518,1706191754842,-1869.88664678,0.00022999,2]
[312739519,1706191754863,-130.11335322,0.00022999,2]
[312739520,1706191755328,-1132.25927443,0.00022999,2]
[312739521,1706191755349,-867.74072557,0.00022999,2]
[312739522,1706191755830,-2000.0,0.00022999,2]
[312739523,1706191756336,-2000.0,0.00022999,2]
[312739524,1706191756869,-965.410596,0.00022999,2]
[312739525,1706191765876,270.16391388,0.00022999,2]
[312739526,1706191767091,764.42549012,0.00022999,2]
[312739527,1706191767113,497.94713753,0.00022999,2]
[312739528,1706191769677,1502.05286247,0.00022999,2]
[312739529,1706191769697,2000.0,0.00022999,2]
[312739530,1706191769720,2000.0,0.00022999,2]
[312739531,1706191769743,2000.0,0.00022999,2]
[312739532,1706191769765,2000.0,0.00022999,2]
[312739533,1706191769786,2000.0,0.00022999,2]
[312739534,1706191769806,2000.0,0.00022999,2]
[312739535,1706191769828,2000.0,0.00022999,2]
[312739536,1706191769849,2000.0,0.00022999,2]
[312739537,1706191769871,2000.0,0.00022999,2]
[312739538,1706191769893,2000.0,0.00022999,2]
[312739539,1706191769914,2000.0,0.00022999,2]
[312739540,1706191769935,2000.0,0.00022999,2]
[312739541,1706191769957,2000.0,0.00022999,2]
[312739542,1706191769979,2000.0,0.00022999,2]
[312739543,1706191770000,2000.0,0.00022999,2]
[312739555,1706191832526,-375.0222,0.00021716,14]
[312739556,1706191832548,-1624.9778,0.000229,2]
[312739570,1706191833557,-2000.0,0.000229,2]
[312739571,1706191833570,-1812.68637267,0.000229,2]
[312739572,1706191833579,-13449.10607745,0.00022999,2]
[312739573,1706191833989,-1756.2972,0.00022999,2]
[312739574,1706191834000,-1139.07017581,0.00022999,2]
[312739575,1706191834012,-449.57833095,0.00022999,2]
[312739576,1706191834198,-2000.0,0.00022999,2]
[312739577,1706191835121,-2000.0,0.00022999,2]
[312739578,1706191835651,-1262.37262765,0.00021715,2]
[312739579,1706191835674,-737.62737235,0.00022999,2]
[312739580,1706191836174,-495.13185765,0.00022767,2]
[312739581,1706191836197,-1504.86814235,0.00022999,2]
[312739582,1706191836717,-2000.0,0.00022999,2]
[312739583,1706191837243,-2000.0,0.00022999,2]
[312739586,1706191837715,-336408.64350494,0.00022999,2]
[312739587,1706191837724,-159.9062418,0.00022999,2]
[312739588,1706191837733,-150.0,0.00022999,2]
[312739589,1706191837742,-159.9062418,0.00022999,2]
[312739590,1706191837752,-150.0,0.00022999,2]
[312739591,1706191837761,-159.9062418,0.00022999,2]
[312739592,1706191837772,-150.0,0.00022999,2]
[312739593,1706191837782,-159.9062418,0.00022999,2]
[312739594,1706191837791,-150.0,0.00022999,2]
[312739595,1706191837800,-159.9062418,0.00022999,2]
[312739596,1706191837809,-150.0,0.00022999,2]
[312739597,1706191837818,-159.9062418,0.00022999,2]
[312739598,1706191837828,-150.0,0.00022999,2]
[312739599,1706191837837,-159.9062418,0.00022999,2]
[312739600,1706191837846,-150.0,0.00022999,2]
[312739601,1706191837857,-159.9062418,0.00022999,2]
[312739602,1706191837866,-150.0,0.00022999,2]
[312739603,1706191837875,-159.9062418,0.00022999,2]
[312739604,1706191837883,-150.0,0.00022999,2]
[312739605,1706191837892,-1047.6799468,0.00022999,2]
[312739606,1706191837902,-329691.20242704,0.00023,2]
[312739607,1706191837915,-7372.25454139,0.00023,2]
[312739608,1706191837926,-540.35513117,0.00023,2]
[312739609,1706191837945,-5040.49999858,0.00023,2]
[312739610,1706191837955,-460.89446664,0.00023,2]
[312739611,1706191837966,-254.99999,0.00023,2]
[312739612,1706191837996,-5852.94007926,0.00023,2]
[312739613,1706191838008,-349.8200102,0.00023,2]
[312739614,1706191838021,-2027.30141711,0.00023,2]
[312739615,1706191838033,-7199996.90058152,0.00023,2]
[312739616,1706191838042,-4807198.64671923,0.00023,2]
[312739617,1706191838052,-204.82055215,0.00023,2]
[312739618,1706191838062,-156.86047358,0.00023,2]
[312739620,1706191838071,-852.79586051,0.00023,4]
[312739622,1706191838081,-160.72,0.0002304,2]
[312739624,1706191838091,-250.0,0.00023079,2]
[312739626,1706191838101,-347.68449445,0.0002313,2]
[312739628,1706191838112,-227.76706896,0.00023471,2]
[312739630,1706191838122,-279.78,0.00023538,2]
[312739632,1706191838131,-662.28,0.00023715,2]
[312739634,1706191838141,-227.76706896,0.00024043,2]
[312739636,1706191838151,-217.69646664,0.000243,2]
[312739638,1706191838161,-279.78,0.00024349,2]
[312739640,1706191838170,-227.76706896,0.00024614,2]
[312739642,1706191838179,-1000.0,0.00024627,2]
[312739644,1706191838189,-250.0,0.00024658,2]
[312739646,1706191838200,-176.55,0.00024677,2]
[312739648,1706191838210,-151.10829198,0.0002474,2]
[312739650,1706191838220,-1122.36571008,0.00025,2]
[312739652,1706191838229,-202.21011162,0.00025,2]
[312739654,1706191838238,-303.74458375,0.00025,2]
[312739657,1706191838248,-167.53295169,0.00025,2]
[312739658,1706191838257,-450.0,0.00025,3]
[312739661,1706191838268,-152.22697284,0.00025025,2]
[312739663,1706191838278,-279.78,0.00025159,2]
[312739664,1706191838287,-227.76706896,0.00025186,2]
[312739666,1706191838297,-662.28,0.00025359,2]
[312739668,1706191838306,-227.76706896,0.00025757,2]
[312739670,1706191838316,-500.0,0.00026,2]
[312739672,1706191838325,-10765.66,0.00026202,2]
[312739674,1706191838335,-227.76706896,0.00026329,3]
[312739676,1706191838345,-10000.0,0.00026537,2]
[312739679,1706191838355,-2852.78,0.00026575,2]
[312739681,1706191838368,-1645.31,0.00026575,2]
[312739683,1706191838378,-227.76706896,0.000269,3]
[312739685,1706191838387,-155.0,0.00027,2]
[312739687,1706191838397,-417.77933585,0.00027,2]
[312739689,1706191838407,-500.0,0.00027,3]
[312739691,1706191838416,-662.28,0.00027003,2]
[312739693,1706191838425,-152.22697284,0.0002715,2]
[312739695,1706191838435,-307.15410335,0.0002739,30]
[312739697,1706191838446,-200.0,0.00027397,5]
[312739699,1706191838455,-155.0,0.00027397,2]
[312739701,1706191838465,-563.77,0.00027397,2]
[312739703,1706191838474,-217.91,0.000274,2]
[312739705,1706191838483,-217.91,0.000274,2]
[312739707,1706191838492,-217.91,0.000274,2]
[312739709,1706191838501,-217.91,0.000274,2]
[312739711,1706191838511,-217.91,0.000274,2]
[312739713,1706191838522,-217.91,0.000274,2]
[312739714,1706191838531,-217.91,0.000274,2]
[312739717,1706191838540,-217.91,0.000274,2]
[312739719,1706191838550,-217.91,0.000274,2]
[312739720,1706191838559,-217.91,0.000274,2]
[312739722,1706191838568,-563.77,0.00027686,2]
[312739724,1706191838577,-1000.0,0.00027705,2]
[312739726,1706191838589,-168.04,0.00027733,2]
[312739728,1706191838598,-200.0,0.00027945,5]
[312739730,1706191838607,-563.77,0.00027974,2]
[312739732,1706191838617,-692.63077835,0.00028,2]
[312739734,1706191838626,-5156.0,0.00028,2]
[312739736,1706191838635,-563.77,0.00028262,2]
[312739738,1706191838645,-200.0,0.00028493,5]
[312739740,1706191838655,-563.77,0.00028551,2]
[312739743,1706191838664,-158.35,0.00028589,2]
[312739744,1706191838673,-662.28,0.00028647,2]
[312739746,1706191838683,-155.0,0.00028767,2]
[312739749,1706191838692,-563.77,0.00028839,2]
[312739751,1706191838702,-159.9062418,0.00028999,2]
[312739753,1706191838712,-150.0,0.00028999,2]
[312739755,1706191838721,-29715.71313864,0.00029,2]
[312739757,1706191838730,-616.39154108,0.00029,15]
[312739759,1706191838740,-550.0,0.00029,3]
[312739761,1706191838750,-379.28197337,0.00029041,5]
[312739763,1706191838759,-563.77,0.00029128,2]
[312739765,1706191838770,-152.22697284,0.00029275,2]
[312739767,1706191838778,-563.77,0.00029416,2]
[312739768,1706191838787,-563.77,0.00029704,2]
[312739770,1706191838796,-563.77,0.00029993,2]
[312739772,1706191838805,-694.42463172,0.0003,2]
[312739774,1706191838815,-155.0,0.0003,2]
[312739776,1706191838824,-8855.08388633,0.0003,4]
[312739779,1706191838834,-691.2394096,0.0003,4]
[312739781,1706191838844,-395.58376861,0.0003,4]
[312739783,1706191838853,-9676.61262292,0.0003,2]
[312739785,1706191838863,-12091.87441367,0.0003,4]
[312739787,1706191838873,-764.8442482,0.0003,4]
[312739789,1706191838882,-204397.43062956,0.0003,4]
[312739791,1706191838892,-312.81536894,0.0003,4]
[312739793,1706191838902,-584.76109505,0.0003,2]
[312739795,1706191838911,-5626.38614164,0.0003,2]
[312739797,1706191838921,-1472.65130728,0.0003,2]
[312739799,1706191838931,-443.47592706,0.0003,4]
[312739801,1706191838940,-5839.85633545,0.0003,4]
[312739803,1706191838951,-443.47592706,0.0003,4]
[312739805,1706191838960,-443.47592706,0.0003,4]
[312739807,1706191838969,-443.47592706,0.0003,4]
[312739808,1706191838979,-203.0,0.0003,2]
[312739809,1706191838988,-1000.0,0.0003,2]
[312739810,1706191838998,-150.0,0.00030137,2]
[312739811,1706191839007,-155.0,0.00030137,2]
[312739812,1706191839018,-155.0,0.000302,2]
[312739813,1706191839027,-500.0,0.000302,2]
[312739814,1706191839037,-500.0,0.000302,2]
[312739815,1706191839046,-500.0,0.000302,2]
[312739817,1706191839056,-200.0,0.000302,2]
[312739819,1706191839066,-939.5661534,0.000302,4]
[312739821,1706191839075,-155.28399107,0.000302,4]
[312739823,1706191839085,-176.29355823,0.000302,4]
[312739825,1706191839095,-375.16664522,0.000302,4]
[312739827,1706191839104,-454.70649829,0.000302,4]
[312739829,1706191839115,-669.86521771,0.000302,4]
[312739831,1706191839124,-563.77,0.00030281,2]
[312739833,1706191839133,-662.28,0.0003029,2]
[312739835,1706191839143,-563.77,0.00030569,2]
[312739837,1706191839151,-150.0,0.00030714,2]
[312739839,1706191839161,-405.58,0.00030778,2]
[312739841,1706191839170,-1000.0,0.00030784,2]
[312739843,1706191839179,-563.77,0.00030858,2]
[312739845,1706191839188,-340.53916578,0.00031,4]
[312739847,1706191839197,-600.0,0.00031,3]
[312739849,1706191839207,-443.47592706,0.00031,4]
[312739851,1706191839216,-563.77,0.00031146,2]
[312739853,1706191839226,-150.0,0.00031291,2]
[312739855,1706191839235,-152.22697284,0.000314,2]
[312739857,1706191839244,-563.77,0.00031435,2]
[312739859,1706191839255,-155.0,0.00031507,2]
[312739861,1706191839265,-191.32,0.00031644,2]
[312739863,1706191839275,-180.0,0.00031644,2]
[312739865,1706191839284,-110549.97212099,0.000317,2]
[312739867,1706191839293,-563.77,0.00031723,2]
[312739869,1706191839303,-14424.2994908,0.000318,3]
[312739871,1706191839312,-150.0,0.00031867,2]
[312739873,1706191839321,-156.25094584,0.00032,2]
[312739875,1706191839333,-5000.0,0.00032,2]
[312739877,1706191839342,-13097.36826834,0.00032,4]
[312739879,1706191839353,-563.77,0.00032011,2]
[312739881,1706191839362,-195.8,0.000322,2]
[312739883,1706191839373,-563.77,0.000323,2]
[312739885,1706191839383,-168.04,0.00032311,2]
[312739887,1706191839393,-150.0,0.00032444,2]
[312739889,1706191839402,-202.14005141,0.000325,2]
[312739891,1706191839411,-563.77,0.00032588,2]
[312739893,1706191839420,-72060.3817523,0.000326,2]
[312739895,1706191839429,-563.77,0.00032877,2]
[312739897,1706191839438,-500.0,0.00032877,2]
[312739899,1706191839447,-500.0,0.00032877,2]
[312739901,1706191839457,-164.11,0.00032877,15]
[312739903,1706191839466,-155.0,0.00032877,2]
[312739905,1706191839475,-50000.0,0.00033,4]
[312739907,1706191839484,-6482.46106349,0.00033,4]
[312739909,1706191839494,-203.0,0.00033,2]
[312739911,1706191839503,-150.0,0.00033021,2]
[312739913,1706191839513,-152.22697284,0.00033525,2]
[312739915,1706191839523,-150.0,0.00033598,2]
[312739917,1706191839533,-232.88475836,0.000338,4]
[312739920,1706191839543,-1000.0,0.00033862,2]
[312739922,1706191839553,-1000.0,0.00034,4]
[312739924,1706191839562,-507.04390037,0.00034,4]
[312739925,1706191839571,-155.70150421,0.00034,4]
[312739927,1706191839581,-150.0,0.00034175,2]
[312739929,1706191839590,-155.0,0.00034247,2]
[312739931,1706191839599,-4324.87772428,0.00034572,2]
[312739933,1706191839607,-158.35,0.00034656,2]
[312739935,1706191839617,-150.0,0.00034751,2]
[312739938,1706191839627,-9001.34893367,0.000349,4]
[312739940,1706191839636,-14929.53004618,0.000349,5]
[312739942,1706191839645,-789.50273902,0.000349,2]
[312739944,1706191839654,-789.50273892,0.000349,2]
[312739945,1706191839663,-789.50273892,0.000349,2]
[312739948,1706191839672,-789.50273892,0.000349,2]
[312739950,1706191839683,-789.50273892,0.000349,2]
[312739952,1706191839692,-789.50273892,0.000349,2]
[312739954,1706191839701,-789.50273892,0.000349,2]
[312739956,1706191839710,-789.50273892,0.000349,2]
[312739958,1706191839719,-155.0,0.00035,2]
[312739960,1706191839728,-386.95936106,0.00035,4]
[312739962,1706191839737,-899.55612655,0.00035,2]
[312739964,1706191839746,-156.39082578,0.00035,4]
[312739966,1706191839755,-546.05749456,0.00035,4]
[312739968,1706191839764,-151.60345275,0.00035,2]
[312739970,1706191839774,-151.60345275,0.00035,2]
[312739972,1706191839783,-1071.22205795,0.00035,2]
[312739974,1706191839792,-155.00192136,0.00035,2]
[312739976,1706191839801,-11652.92137411,0.00035,2]
[312739978,1706191839810,-11652.92137411,0.00035,2]
[312739979,1706191839819,-348.90333968,0.00035,2]
[312739982,1706191839828,-348.90333968,0.00035,2]
[312739984,1706191839839,-348.90333968,0.00035,2]
[312739986,1706191839849,-348.90333968,0.00035,2]
[312739988,1706191839858,-348.90333968,0.00035,2]
[312739990,1706191839867,-348.90333968,0.00035,2]
[312739991,1706191839877,-348.90333968,0.00035,2]
[312739993,1706191839886,-348.90333968,0.00035,2]
[312739995,1706191839896,-348.90333968,0.00035,2]
[312739997,1706191839905,-348.90333968,0.00035,2]
[312739999,1706191839914,-348.90333968,0.00035,2]
[312740001,1706191839923,-348.90333968,0.00035,2]
[312740003,1706191839932,-348.90333968,0.00035,2]
[312740005,1706191839942,-348.90333968,0.00035,2]
[312740007,1706191839951,-348.90333968,0.00035,2]
[312740009,1706191839960,-348.90333968,0.00035,2]
[312740011,1706191839970,-348.90333968,0.00035,2]
[312740013,1706191839979,-348.90333968,0.00035,2]
[312740015,1706191839989,-348.90333968,0.00035,2]
[312740017,1706191839998,-348.90333968,0.00035,2]
[312740020,1706191840008,-348.90333968,0.00035,2]
[312740021,1706191840017,-348.90333968,0.00035,2]
[312740023,1706191840026,-348.90333968,0.00035,2]
[312740025,1706191840035,-348.90333968,0.00035,2]
[312740027,1706191840045,-348.90333968,0.00035,2]
[312740029,1706191840054,-348.90333968,0.00035,2]
[312740031,1706191840064,-348.90333968,0.00035,2]
[312740033,1706191840073,-348.90333968,0.00035,2]
[312740056,1706191840245,-348.90333968,0.00035,2]
[312740058,1706191840262,-348.90333968,0.00035,2]
[312740060,1706191840272,-348.90333968,0.00035,2]
[312740062,1706191840281,-348.90333968,0.00035,2]
[312740064,1706191840291,-348.90333968,0.00035,2]
[312740066,1706191840300,-348.90333968,0.00035,2]
[312740068,1706191840309,-348.90333968,0.00035,2]
[312740070,1706191840318,-348.90333968,0.00035,2]
[312740072,1706191840327,-348.90333968,0.00035,2]
[312740074,1706191840336,-348.90333968,0.00035,2]
[312740076,1706191840346,-348.90333968,0.00035,2]
[312740078,1706191840356,-348.90333968,0.00035,2]
[312740080,1706191840366,-348.90333968,0.00035,2]
[312740082,1706191840376,-348.90333968,0.00035,2]
[312740084,1706191840385,-348.90333968,0.00035,2]
[312740086,1706191840395,-348.90333968,0.00035,2]
[312740088,1706191840405,-348.90333968,0.00035,2]
[312740090,1706191840414,-348.90333968,0.00035,2]
[312740092,1706191840423,-348.90333968,0.00035,2]
[312740094,1706191840432,-348.90333968,0.00035,2]
[312740096,1706191840442,-348.90333968,0.00035,2]
[312740097,1706191840452,-348.90333968,0.00035,2]
[312740098,1706191840462,-348.90333968,0.00035,2]
[312740099,1706191840471,-348.90333968,0.00035,2]
[312740100,1706191840481,-348.90333968,0.00035,2]
[312740101,1706191840490,-348.90333968,0.00035,2]
[312740102,1706191840499,-348.90333968,0.00035,2]
[312740103,1706191840509,-348.90333968,0.00035,2]
[312740105,1706191840518,-348.90333968,0.00035,2]
[312740107,1706191840528,-348.90333968,0.00035,2]
[312740109,1706191840537,-348.90333968,0.00035,2]
[312740111,1706191840546,-348.90333968,0.00035,2]
[312740113,1706191840556,-348.90333968,0.00035,2]
[312740115,1706191840565,-348.90333968,0.00035,2]
[312740117,1706191840574,-348.90333968,0.00035,2]
[312740119,1706191840583,-348.90333968,0.00035,2]
[312740121,1706191840592,-348.90333968,0.00035,2]
[312740123,1706191840602,-348.90333968,0.00035,2]
[312740125,1706191840610,-348.90333968,0.00035,2]
[312740127,1706191840619,-348.90333968,0.00035,2]
[312740129,1706191840628,-348.90333968,0.00035,2]
[312740131,1706191840637,-348.90333968,0.00035,2]
[312740133,1706191840646,-348.90333968,0.00035,2]
[312740135,1706191840655,-348.90333968,0.00035,2]
[312740137,1706191840665,-348.90333968,0.00035,2]
[312740139,1706191840675,-348.90333968,0.00035,2]
[312740141,1706191840685,-348.90333968,0.00035,2]
[312740143,1706191840694,-348.90333968,0.00035,2]
[312740146,1706191840704,-348.90333968,0.00035,2]
[312740148,1706191840714,-348.90333968,0.00035,2]
[312740150,1706191840723,-348.90333968,0.00035,2]
[312740151,1706191840733,-348.90333968,0.00035,2]
[312740154,1706191840743,-348.90333968,0.00035,2]
[312740155,1706191840752,-348.90333968,0.00035,2]
[312740157,1706191840761,-348.90333968,0.00035,2]
[312740160,1706191840772,-348.90333968,0.00035,2]
[312740162,1706191840782,-348.90333968,0.00035,2]
[312740164,1706191840792,-348.90333968,0.00035,2]
[312740166,1706191840802,-348.90333968,0.00035,2]
[312740168,1706191840811,-348.90333968,0.00035,2]
[312740169,1706191840820,-348.90333968,0.00035,2]
[312740171,1706191840829,-348.90333968,0.00035,2]
[312740173,1706191840838,-348.90333968,0.00035,2]
[312740176,1706191840848,-348.90333968,0.00035,2]
[312740177,1706191840857,-348.90333968,0.00035,2]
[312740179,1706191840866,-348.90333968,0.00035,2]
[312740182,1706191840875,-348.90333968,0.00035,2]
[312740184,1706191840884,-348.90333968,0.00035,2]
[312740186,1706191840894,-348.90333968,0.00035,2]
[312740188,1706191840903,-348.90333968,0.00035,2]
[312740189,1706191840913,-348.90333968,0.00035,2]
[312740192,1706191840922,-348.90333968,0.00035,2]
[312740194,1706191840931,-150.0,0.00035328,2]
[312740195,1706191840941,-789.50273892,0.00035531,2]
[312740197,1706191840950,-150.0,0.00035616,2]
[312740200,1706191840960,-300.0,0.00035616,7]
[312740202,1706191840970,-450.0,0.00035616,12]
[312740204,1706191840979,-600.0,0.00035616,17]
[312740206,1706191840988,-600.0,0.00035616,22]
[312740208,1706191840998,-161.12025026,0.00035617,2]
[312740209,1706191841007,-152.22697284,0.0003565,2]
[312740211,1706191841018,-150.0,0.00035905,2]
[312740213,1706191841028,-547.14423294,0.00035997,2]
[312740216,1706191841038,-298.27718725,0.00036,4]
[312740218,1706191841048,-173.73,0.00036,7]
[312740220,1706191841058,-128154.61758808,0.00036,2]
[312740222,1706191841067,-11652.92137411,0.00036,2]
[312740224,1706191841076,-905.515,0.00036315,2]
[312740226,1706191841086,-570.218,0.00036315,2]
[312740227,1706191841095,-1233.0,0.00036315,2]
[312740230,1706191841105,-210.0,0.00036315,2]
[312740231,1706191841114,-1251.0,0.00036315,2]
[312740233,1706191841123,-236.0,0.00036315,2]
[312740235,1706191841133,-998.0,0.00036315,2]